bitfinex/quotes_BTCUSD_20240823
["timestamp","ask_amount","ask_price","bid_price","bid_amount"]
[1724401025442,0.02662613,61259.0,61258.0,2.28216059]
[1724401026146,0.02662613,61259.0,61258.0,2.26816059]
[1724401026613,0.02662613,61259.0,61258.0,2.28216059]
[1724401026848,0.02662613,61259.0,61258.0,2.26816059]
[1724401027329,0.02662613,61259.0,61258.0,2.28616059]
[1724401027812,0.02662613,61259.0,61258.0,2.28216059]
[1724401028029,0.02662613,61259.0,61258.0,2.36086059]
[1724401029680,0.02662613,61259.0,61258.0,2.36286059]
[1724401030153,0.02662613,61259.0,61258.0,2.36486059]
[1724401030353,0.02662613,61259.0,61258.0,2.36086059]
[1724401031203,0.02662613,61259.0,61258.0,2.36286059]
[1724401031608,0.02662613,61259.0,61258.0,2.34886059]
[1724401032018,0.02662613,61259.0,61258.0,2.36286059]
[1724401032427,0.02662613,61259.0,61258.0,2.36486059]
[1724401032638,0.02662613,61259.0,61258.0,2.35086059]
[1724401033054,0.02662613,61259.0,61258.0,2.36486059]
[1724401033467,1.3e-07,61259.0,61258.0,2.36086059]
[1724401033674,1.3e-07,61259.0,61258.0,2.36486059]
[1724401033882,0.00824,61267.0,61266.0,1.795447]
[1724401034091,0.00824,61267.0,61266.0,2.16250576]
[1724401034297,0.00824,61267.0,61266.0,2.17858038]
[1724401034925,0.00824,61267.0,61266.0,2.24208038]
[1724401035749,0.00824,61267.0,61266.0,2.24743858]
[1724401036163,0.00824,61267.0,61266.0,2.26143858]
[1724401036369,0.00824,61267.0,61266.0,2.26543858]
[1724401036574,0.00824,61267.0,61266.0,2.25190516]
[1724401036958,0.00824,61267.0,61266.0,2.27990516]
[1724401037160,0.00824,61267.0,61266.0,2.2852609]
[1724401037365,0.00824,61267.0,61266.0,2.2752609]
[1724401037581,0.00824,61267.0,61266.0,2.26990467]
[1724401037789,0.00824,61267.0,61266.0,2.28390467]
[1724401038200,0.00824,61267.0,61266.0,2.28926139]
[1724401038480,0.00824,61267.0,61266.0,2.28726139]
[1724401038721,0.00824,61277.0,61266.0,2.28726139]
[1724401038722,1e-06,61277.0,61276.0,1.795156]
[1724401039022,1e-06,61277.0,61276.0,2.20851476]
[1724401039230,1e-06,61277.0,61276.0,2.32412096]
[1724401039442,1e-06,61277.0,61276.0,2.65051296]
[1724401040142,1e-06,61277.0,61276.0,2.67851296]
[1724401040408,1e-06,61277.0,61276.0,2.6698464]
[1724401040612,1e-06,61277.0,61276.0,2.71102768]
[1724401040821,1e-06,61277.0,61276.0,2.69702768]
[1724401041026,1e-06,61277.0,61276.0,2.71102768]
[1724401041440,1e-06,61277.0,61276.0,2.72043941]
[1724401041650,1e-06,61277.0,61276.0,2.71643941]
[1724401041845,0.02559333,61277.0,61276.0,2.71643941]
[1724401042197,0.02559333,61277.0,61276.0,2.66991453]
[1724401042398,0.02559333,61277.0,61276.0,2.68921851]
[1724401043478,0.02559333,61277.0,61276.0,2.69121851]
[1724401043686,0.02559333,61277.0,61276.0,2.69321851]
[1724401046425,3.3e-07,61277.0,61276.0,2.69321851]
[1724401046633,3.3e-07,61277.0,61276.0,2.73439979]
[1724401046842,0.00824,61281.0,61278.0,1.859495]
[1724401047047,0.00824,61281.0,61278.0,2.18767926]
[1724401047435,0.00824,61281.0,61278.0,2.20900323]
[1724401047898,2.5e-07,61279.0,61278.0,2.57200295]
[1724401048110,2.5e-07,61279.0,61278.0,2.69324001]
[1724401048325,0.00824,61281.0,61278.0,2.69324001]
[1724401048326,1e-06,61281.0,61280.0,1.799035]
[1724401048541,1e-06,61281.0,61280.0,2.41240798]
[1724401048755,1e-06,61281.0,61280.0,2.47490503]
[1724401049169,1e-06,61281.0,61280.0,2.62050503]
[1724401049819,1e-06,61281.0,61280.0,2.61650503]
[1724401050259,0.0756,61298.0,61292.0,1.794683]
[1724401050482,0.0756,61298.0,61292.0,1.73543576]
[1724401050690,0.0756,61298.0,61292.0,1.90559489]
[1724401051361,0.0120164,61306.0,61292.0,1.82553911]
[1724401051574,0.14564,61293.0,61292.0,1.42201199]
[1724401051786,0.14564,61293.0,61292.0,1.50206777]
[1724401052206,0.1712273,61293.0,61292.0,1.50206777]
[1724401053053,0.1712273,61293.0,61292.0,1.51606777]
[1724401053265,0.1712273,61293.0,61292.0,1.43601199]
[1724401053547,0.1712273,61293.0,61292.0,1.42201199]
[1724401053749,0.1712273,61293.0,61292.0,1.43601199]
[1724401053880,0.1712273,61293.0,61292.0,1.45001199]
[1724401054085,0.1712273,61293.0,61292.0,1.43601199]
[1724401054291,0.1712273,61293.0,61292.0,1.42201199]
[1724401054487,0.1712273,61293.0,61292.0,1.43601199]
[1724401054687,0.1712273,61293.0,61292.0,1.47092044]
[1724401055475,0.1089273,61293.0,61292.0,1.47092044]
[1724401056161,0.1089273,61293.0,61292.0,1.48492044]
[1724401056485,0.1089273,61293.0,61292.0,1.50792044]
[1724401056683,0.1089273,61293.0,61292.0,1.82022644]
[1724401056881,0.0338273,61293.0,61292.0,1.88662644]
[1724401057302,0.0338273,61293.0,61292.0,1.84822644]
[1724401057504,0.0338273,61293.0,61292.0,1.83422644]
[1724401057644,0.0338273,61293.0,61292.0,1.84822644]
[1724401058047,0.0338273,61293.0,61292.0,1.85351324]
[1724401058258,0.0338273,61293.0,61292.0,1.91901324]
[1724401058460,0.0338273,61293.0,61292.0,1.90501324]
[1724401058871,0.0338273,61293.0,61292.0,1.91901324]
[1724401059095,0.0338273,61293.0,61292.0,1.85351324]
[1724401059308,0.0338273,61293.0,61292.0,1.83951324]
[1724401059650,0.0338273,61293.0,61292.0,1.84820704]
[1724401059853,0.0338273,61293.0,61292.0,1.85349836]
[1724401060067,0.0338273,61293.0,61292.0,1.79058991]
[1724401060267,0.0338273,61293.0,61292.0,1.77658991]
[1724401060413,0.0338273,61293.0,61292.0,1.83949836]
[1724401060615,0.0338273,61293.0,61292.0,1.85349836]
[1724401060811,0.0338273,61293.0,61292.0,1.83949836]
[1724401061013,0.1110273,61293.0,61292.0,1.77658991]
[1724401061248,0.0338273,61293.0,61292.0,1.79058991]
[1724401061448,0.0338273,61293.0,61292.0,1.85349836]
[1724401061857,0.0338273,61293.0,61292.0,1.80458991]
[1724401062060,0.0338273,61293.0,61292.0,1.78528588]
[1724401062262,0.0338273,61293.0,61292.0,1.79058968]
[1724401062730,0.0338273,61293.0,61292.0,1.77658968]
[1724401063117,0.0338273,61293.0,61292.0,1.79058968]
[1724401063493,0.0338273,61293.0,61292.0,1.77658968]
[1724401063749,0.0338273,61293.0,61292.0,1.79058968]
[1724401064479,0.0338273,61293.0,61292.0,1.80458968]
[1724401065091,0.0338273,61293.0,61292.0,2.26929568]
[1724401065300,0.00824,61295.0,61294.0,1.142036]
[1724401065499,0.00824,61295.0,61294.0,1.40909476]
[1724401065725,0.00824,61295.0,61294.0,1.83539076]
[1724401065930,0.03382396,61295.0,61294.0,2.16168676]
[1724401066147,0.03382396,61295.0,61294.0,1.83539076]
[1724401066350,0.03382396,61295.0,61294.0,1.88429921]
[1724401066558,0.03382396,61295.0,61294.0,2.21059521]
[1724401066758,0.1,61297.0,61296.0,0.163142]
[1724401066759,0.06856696,61297.0,61296.0,0.163142]
[1724401066961,0.06856696,61297.0,61296.0,1.32899998]
[1724401067170,0.06856696,61297.0,61296.0,2.13047843]
[1724401067379,0.09415029,61297.0,61296.0,2.13047843]
[1724401067585,0.06152229,61297.0,61296.0,2.27487843]
[1724401068218,0.06152229,61297.0,61296.0,2.22596998]
[1724401068477,0.06152229,61297.0,61296.0,2.23996998]
[1724401069235,0.06152229,61297.0,61296.0,2.56625498]
[1724401069438,0.06152229,61297.0,61296.0,2.23996998]
[1724401070146,0.06152229,61297.0,61296.0,2.25396998]
[1724401070889,0.06152229,61297.0,61296.0,2.27515501]
[1724401071615,0.0002,61299.0,61298.0,1.87856278]
[1724401071844,0.0002,61299.0,61298.0,2.16556576]
[1724401072104,0.0120164,61306.0,61300.0,1.796452]
[1724401072338,0.0120164,61306.0,61300.0,2.08545498]
[1724401072609,0.0120164,61306.0,61302.0,1.468138]
[1724401072847,0.0120164,61306.0,61302.0,2.16144976]
[1724401073102,0.0120164,61306.0,61302.0,2.18259272]
[1724401074072,0.0120164,61306.0,61302.0,2.19659272]
[1724401074520,0.0120164,61306.0,61302.0,2.21059272]
[1724401075261,0.0794,61304.0,61302.0,1.80428394]
[1724401075463,0.0794,61304.0,61302.0,2.21059272]
[1724401075688,0.0120164,61306.0,61302.0,2.21059272]
[1724401076749,0.0120164,61306.0,61302.0,2.22039678]
[1724401079123,0.07174,61303.0,61302.0,1.814088]
[1724401079331,0.14824,61303.0,61302.0,1.87114378]
[1724401079753,0.14824,61303.0,61302.0,1.8658418]
[1724401079959,0.08474,61303.0,61302.0,1.8658418]
[1724401080335,0.14714,61303.0,61302.0,1.45500928]
[1724401080545,0.14714,61303.0,61302.0,1.42978474]
[1724401081692,0.14714,61303.0,61302.0,1.75603774]
[1724401081893,0.14714,61303.0,61302.0,1.85603774]
[1724401082439,0.14714,61303.0,61302.0,1.86131806]
[1724401083087,0.08474,61303.0,61302.0,1.86131806]
[1724401083551,0.00824,61303.0,61302.0,1.86131806]
[1724401084449,0.00824,61303.0,61302.0,2.18757106]
[1724401084938,0.00824,61303.0,61302.0,1.86131806]
[1724401085180,0.08924,61303.0,61302.0,1.86131806]
[1724401085393,0.00824,61303.0,61302.0,1.94101806]
[1724401085577,0.00824,61303.0,61302.0,2.33337106]
[1724401085849,0.00824,61303.0,61302.0,2.33537106]
[1724401086090,0.00824,61303.0,61302.0,2.33137106]
[1724401086334,0.03382025,61303.0,61302.0,2.33137106]
[1724401086814,0.03382025,61303.0,61302.0,2.00511806]
[1724401087091,0.03382025,61303.0,61302.0,2.00711806]
[1724401087315,0.03382025,61303.0,61302.0,2.01687054]
[1724401087523,0.03382025,61303.0,61302.0,2.34512354]
[1724401087767,0.03382025,61303.0,61302.0,2.34112354]
[1724401088422,0.03382025,61303.0,61302.0,2.36812354]
[1724401089159,0.0120164,61306.0,61302.0,2.36812354]
[1724401089160,0.0120164,61306.0,61305.0,1.87435878]
[1724401089388,0.0120164,61306.0,61305.0,2.15979154]
[1724401089636,4e-07,61306.0,61305.0,2.50713755]
[1724401089880,4e-07,61306.0,61305.0,2.51113755]
[1724401090404,4e-07,61306.0,61305.0,2.18090055]
[1724401090614,4e-07,61306.0,61305.0,2.19490055]
[1724401090849,4e-07,61306.0,61305.0,2.20890055]
[1724401092141,0.0620004,61306.0,61305.0,2.20890055]
[1724401093040,4e-07,61306.0,61305.0,2.20890055]
[1724401093911,0.0785004,61306.0,61305.0,1.77960777]
[1724401094127,0.1443004,61306.0,61305.0,1.75966355]
[1724401094330,0.1443004,61306.0,61305.0,1.75438063]
[1724401094537,0.1443004,61306.0,61305.0,1.75965599]
[1724401095754,0.1443004,61306.0,61305.0,1.85965599]
[1724401096490,4e-07,61306.0,61305.0,2.20889299]
[1724401097662,0.1431004,61306.0,61305.0,1.77960021]
[1724401097893,0.1431004,61306.0,61305.0,1.69810821]
[1724401097894,0.16867983,61306.0,61305.0,1.69810821]
[1724401098093,0.16867983,61306.0,61305.0,1.69283285]
[1724401098366,0.02640283,61306.0,61305.0,1.86122621]
[1724401098608,0.02640283,61306.0,61305.0,2.18746321]
[1724401099090,0.02640283,61306.0,61305.0,2.21046321]
[1724401100458,0.17290283,61306.0,61305.0,1.86122621]
[1724401100670,0.10750283,61306.0,61305.0,1.86122621]
[1724401108650,0.10750283,61306.0,61305.0,2.32576321]
[1724401108651,0.02640283,61306.0,61305.0,2.32576321]
[1724401110806,0.02640283,61306.0,61305.0,2.32776321]
[1724401111227,0.02640283,61306.0,61305.0,2.34676321]
[1724401111682,0.02640283,61306.0,61305.0,2.39541025]
[1724401111893,0.02640283,61306.0,61305.0,2.39631555]
[1724401113772,0.02640283,61306.0,61305.0,2.34766851]
[1724401114816,0.02640283,61306.0,61305.0,2.42063907]
[1724401115024,0.02640283,61306.0,61305.0,2.75550888]
[1724401115456,0.02640283,61306.0,61305.0,2.74396005]
[1724401115885,0.02640283,61306.0,61305.0,2.74596005]
[1724401116298,0.02640283,61306.0,61305.0,2.7590597]
[1724401116503,0.02640283,61306.0,61305.0,2.42025398]
[1724401116715,0.02640283,61306.0,61305.0,2.40905292]
[1724401116920,0.02640283,61306.0,61305.0,2.27275292]
[1724401117129,0.02640283,61306.0,61305.0,1.84346014]
[1724401117336,0.02640283,61306.0,61305.0,1.8614726]
[1724401117541,0.02640283,61306.0,61305.0,2.1877096]
[1724401119232,0.02640283,61306.0,61305.0,2.25939873]
[1724401119860,0.02640283,61306.0,61305.0,2.23639873]
[1724401120683,0.02640283,61306.0,61305.0,2.1877096]
[1724401120891,0.09070283,61306.0,61305.0,2.1877096]
[1724401121104,0.17400283,61306.0,61305.0,1.45517982]
[1724401121318,0.17400283,61306.0,61305.0,1.44565383]
[1724401121550,0.17400283,61306.0,61305.0,1.52570961]
[1724401126200,0.17400283,61306.0,61305.0,1.53479796]
[1724401129621,0.17500283,61306.0,61305.0,0.0489102]
[1724401129885,0.24840484,61306.0,61305.0,0.0489102]
[1724401130095,0.30406909,61306.0,61305.0,0.0289053]
[1724401130312,0.30406909,61306.0,61305.0,0.04565549]
[1724401130567,0.24838562,61306.0,61305.0,0.04565549]
[1724401131267,0.41150162,61306.0,61305.0,0.04565549]
[1724401131500,0.33811883,61306.0,61305.0,0.03165549]
[1724401131739,0.33811883,61306.0,61305.0,0.04565549]
[1724401131740,0.17500283,61306.0,61305.0,0.04565549]
[1724401131951,0.17500283,61306.0,61305.0,0.0289053]
[1724401132161,0.17400283,61306.0,61305.0,0.50701049]
[1724401132387,0.17400283,61306.0,61305.0,0.83324749]
[1724401132599,0.17400283,61306.0,61305.0,1.01225047]
[1724401132834,0.17400283,61306.0,61305.0,1.00425047]
[1724401133294,0.17400283,61306.0,61305.0,1.00125047]
[1724401133510,0.17400283,61306.0,61305.0,0.99725047]
[1724401134015,0.17400283,61306.0,61305.0,1.00525047]
[1724401134890,0.17400283,61306.0,61305.0,1.01425047]
[1724401135347,0.17400283,61306.0,61305.0,1.00625047]
[1724401135549,0.17400283,61306.0,61305.0,1.00725047]
[1724401136056,0.17400283,61306.0,61305.0,1.02025047]
[1724401136284,0.17400283,61306.0,61305.0,0.69401347]
[1724401136515,0.17400283,61306.0,61305.0,1.01025047]
[1724401136741,0.17400283,61306.0,61305.0,1.02125047]
[1724401139844,0.17400283,61306.0,61305.0,0.04165549]
[1724401139845,0.17500283,61306.0,61305.0,0.04165549]
[1724401146213,0.17500283,61306.0,61305.0,0.20477349]
[1724401147479,0.17500283,61306.0,61305.0,0.85724749]
[1724401150492,0.17120283,61306.0,61305.0,1.34748747]
[1724401150700,0.17220283,61306.0,61305.0,1.02125047]
[1724401153084,0.10970283,61306.0,61305.0,1.34748747]
[1724401153969,0.02640283,61306.0,61305.0,1.34748747]
[1724401154178,0.02640283,61306.0,61305.0,1.52878747]
[1724401155002,0.02640283,61306.0,61305.0,1.83102447]
[1724401155207,0.02640283,61306.0,61305.0,1.84502447]
[1724401155377,0.02640283,61306.0,61305.0,1.85902447]
[1724401155784,0.02640283,61306.0,61305.0,1.84502447]
[1724401156591,0.02640283,61306.0,61305.0,1.90114387]
[1724401157050,0.02640283,61306.0,61305.0,1.91514387]
[1724401157489,0.02640283,61306.0,61305.0,1.90114387]
[1724401157694,0.02640283,61306.0,61305.0,1.90532447]
[1724401157880,0.02640283,61306.0,61305.0,1.91932447]
[1724401158320,0.02640283,61306.0,61305.0,1.82402447]
[1724401158527,0.02640283,61306.0,61305.0,1.83802447]
[1724401159544,0.02640283,61306.0,61305.0,1.84753523]
[1724401161656,0.02640283,61306.0,61305.0,1.45148747]
[1724401163313,0.02640283,61306.0,61305.0,1.77772447]
[1724401163468,0.02640283,61306.0,61305.0,1.45148747]
[1724401164206,0.02640283,61306.0,61305.0,1.77772447]
[1724401165035,0.02640283,61306.0,61305.0,1.45148747]
[1724401168089,0.02640283,61306.0,61305.0,1.77772447]
[1724401168693,0.02640283,61306.0,61305.0,1.45148747]
[1724401170313,0.02640283,61306.0,61305.0,1.77772447]
[1724401170715,0.02640283,61306.0,61305.0,1.45148747]
[1724401171401,0.10240283,61306.0,61305.0,1.45148747]
[1724401171846,0.16700283,61306.0,61305.0,1.45148747]
[1724401178380,0.16800283,61306.0,61305.0,1.45148747]
[1724401178584,0.16300283,61306.0,61305.0,1.45148747]
[1724401182606,0.02140283,61306.0,61305.0,1.45148747]
[1724401198116,0.15970283,61306.0,61305.0,1.45148747]
[1724401199181,0.16070283,61306.0,61305.0,1.45148747]
[1724401199389,0.16070283,61306.0,61305.0,1.02525047]
[1724401200060,0.16070283,61306.0,61305.0,0.99725047]
[1724401201265,0.16070283,61306.0,61305.0,1.02525047]
[1724401201663,0.15970283,61306.0,61305.0,1.35148747]
[1724401201897,0.02140283,61306.0,61305.0,1.35148747]
[1724401202843,0.02140283,61306.0,61305.0,1.41198747]
[1724401205582,0.02140283,61306.0,61305.0,1.91532447]
[1724401206144,0.02140283,61306.0,61305.0,1.9639844]
[1724401206345,0.02140283,61306.0,61305.0,1.88732447]
[1724401206971,0.02140283,61306.0,61305.0,1.90132447]
[1724401207311,0.02140283,61306.0,61305.0,1.91532447]
[1724401207700,0.02140283,61306.0,61305.0,1.90132447]
[1724401208383,0.02140283,61306.0,61305.0,1.91532447]
[1724401208516,0.02140283,61306.0,61305.0,1.90132447]
[1724401208954,0.02140283,61306.0,61305.0,1.91532447]
[1724401209731,0.02140283,61306.0,61305.0,1.58908747]
[1724401210712,0.02140283,61306.0,61305.0,1.91532447]
[1724401210876,0.02140283,61306.0,61305.0,1.58908747]
[1724401211413,0.02140283,61306.0,61305.0,1.91532447]
[1724401211793,0.000823,61306.0,61305.0,1.91532447]
[1724401216549,0.000823,61306.0,61305.0,2.24156147]
[1724401217687,0.02640126,61306.0,61305.0,2.24156147]
[1724401227520,0.02640126,61306.0,61305.0,2.29156147]
[1724401228238,0.02640126,61306.0,61305.0,1.96532447]
[1724401229097,0.02640126,61306.0,61305.0,2.29156147]
[1724401229259,0.02640126,61306.0,61305.0,1.96532447]
[1724401230430,0.02640126,61306.0,61305.0,2.29156147]
[1724401232118,0.02640126,61306.0,61305.0,2.28327701]
[1724401236843,0.02640126,61306.0,61305.0,1.95704001]
[1724401237272,0.02640126,61306.0,61305.0,1.87994001]
[1724401237880,0.02640126,61306.0,61305.0,2.20617701]
[1724401238213,0.000823,61306.0,61305.0,2.20617701]
[1724401240520,0.000823,61306.0,61305.0,2.2092115]
[1724401240739,0.02640177,61306.0,61305.0,2.2092115]
[1724401240927,0.02640177,61306.0,61305.0,1.8829745]
[1724401241275,0.02640177,61306.0,61305.0,1.8224745]
[1724401241493,0.02640177,61306.0,61305.0,2.1487115]
[1724401244428,0.02640177,61306.0,61305.0,2.19733947]
[1724401245613,0.02640177,61306.0,61305.0,2.1487115]
[1724401247584,0.02640177,61306.0,61305.0,2.19733947]
[1724401249086,0.02640177,61306.0,61305.0,2.1487115]
[1724401249288,0.02640177,61306.0,61305.0,2.19735849]
[1724401250519,0.02640177,61306.0,61305.0,2.1487115]
[1724401250748,0.02640177,61306.0,61305.0,2.46220656]
[1724401251094,0.02640177,61306.0,61305.0,2.58382403]
[1724401251290,0.02640177,61306.0,61305.0,2.46220656]
[1724401251504,0.02640177,61306.0,61305.0,2.58382403]
[1724401251916,0.02640177,61306.0,61305.0,2.91006103]
[1724401252126,7.7e-07,61306.0,61305.0,2.85154356]
[1724401252332,0.0831,61314.0,61313.0,1.794072]
[1724401252491,0.0831,61314.0,61313.0,2.05807498]
[1724401252691,0.0643,61318.0,61317.0,0.815432]
[1724401252891,0.0643,61318.0,61317.0,1.63178098]
[1724401253094,0.0643,61318.0,61317.0,1.64085372]
[1724401253095,0.1416,61318.0,61317.0,1.64085372]
[1724401254531,0.1416,61318.0,61317.0,1.65485372]
[1724401255030,0.1416,61318.0,61317.0,1.66885372]
[1724401255520,0.1416,61318.0,61317.0,1.64085372]
[1724401255938,0.0773,61318.0,61317.0,1.65485372]
[1724401256987,0.0773,61318.0,61317.0,1.66885372]
[1724401257187,0.0773,61318.0,61317.0,1.65485372]
[1724401257613,0.0773,61318.0,61317.0,1.66885372]
[1724401257797,0.1028775,61318.0,61317.0,1.66885372]
[1724401257970,0.0255775,61318.0,61317.0,2.09502672]
[1724401258771,0.0255775,61318.0,61317.0,2.08102672]
[1724401259203,0.0255775,61318.0,61317.0,2.09502672]
[1724401259641,0.0255775,61318.0,61317.0,2.08102672]
[1724401259844,0.0255775,61318.0,61317.0,2.09502672]
[1724401260170,0.0255775,61318.0,61317.0,2.08102672]
[1724401260371,0.0255775,61318.0,61317.0,2.24948414]
[1724401261286,0.0255775,61318.0,61317.0,2.10458414]
[1724401261459,0.0255775,61318.0,61317.0,1.76441114]
[1724401262041,0.0264015,61318.0,61317.0,1.77841114]
[1724401262867,0.0264015,61318.0,61317.0,1.76441114]
[1724401263308,0.0264015,61318.0,61317.0,1.77841114]
[1724401263890,0.0264015,61318.0,61317.0,1.76441114]
[1724401264270,0.0264015,61318.0,61317.0,1.77841114]
[1724401264639,0.0264015,61318.0,61317.0,1.76441114]
[1724401264831,0.0264015,61318.0,61317.0,1.77841114]
[1724401265530,0.0264015,61318.0,61317.0,1.76441114]
[1724401265963,0.0264015,61318.0,61317.0,1.77841114]
[1724401281859,0.1017015,61318.0,61317.0,1.77841114]
[1724401282059,0.1639015,61318.0,61317.0,1.77841114]
[1724401283440,0.0264015,61318.0,61317.0,1.77841114]
[1724401283648,0.0264015,61318.0,61317.0,1.45223814]
[1724401288149,0.1734015,61318.0,61317.0,1.45223814]
[1724401296282,0.147824,61318.0,61317.0,1.45223814]
[1724401298485,0.311908,61318.0,61317.0,0.20107572]
[1724401298658,0.67565477,61318.0,61317.0,0.03707274]
[1724401298867,1.00182277,61318.0,61317.0,0.05289198]
[1724401299063,1.00182277,61318.0,61317.0,0.028]
[1724401299458,0.67565477,61318.0,61317.0,0.028]
[1724401299657,0.67565477,61318.0,61317.0,0.014]
[1724401299888,0.52865477,61318.0,61316.0,0.00039265]
[1724401300075,0.637076,61318.0,61317.0,0.006]
[1724401300279,0.6760591,61318.0,61317.0,0.02]
[1724401300454,0.3498911,61318.0,61317.0,0.02]
[1724401300833,0.3498911,61318.0,61317.0,0.006]
[1724401301253,0.1428,61317.0,61316.0,0.00939265]
[1724401301449,0.1817831,61317.0,61316.0,0.00939265]
[1724401301652,0.1428,61317.0,61316.0,0.00039265]
[1724401301848,0.19167302,61317.0,61316.0,0.00039265]
[1724401302094,0.1428,61317.0,61316.0,0.02528891]
[1724401302686,0.1428,61317.0,61316.0,0.03328891]
[1724401302687,0.1438,61317.0,61316.0,0.03328891]
[1724401302875,0.1438,61317.0,61316.0,0.36038089]
[1724401303645,0.1438,61317.0,61316.0,0.35998824]
[1724401303846,0.1438,61317.0,61316.0,0.68616724]
[1724401304046,0.1438,61317.0,61316.0,0.69616724]
[1724401306343,0.16937882,61317.0,61316.0,0.69616724]
[1724401307964,0.16937882,61317.0,61316.0,0.20598526]
[1724401309026,0.16937882,61317.0,61316.0,0.04289626]
[1724401310441,0.16937882,61317.0,61316.0,0.04328891]
[1724401314166,0.16937882,61317.0,61316.0,0.03578842]
[1724401314493,0.16937882,61317.0,61316.0,0.19887742]
[1724401317694,0.16937882,61317.0,61316.0,0.19364087]
[1724401317901,0.16937882,61317.0,61316.0,0.51981987]
[1724401318083,0.16937882,61317.0,61316.0,0.19364087]
[1724401321756,0.16937882,61317.0,61316.0,0.03055187]
[1724401321960,0.02557882,61317.0,61316.0,0.68382285]
[1724401322156,0.02657882,61317.0,61316.0,1.01000185]
[1724401322516,0.02740282,61317.0,61316.0,1.01000185]
[1724401324753,0.10990282,61317.0,61316.0,1.01000185]
[1724401325103,0.17260282,61317.0,61316.0,1.01000185]
[1724401328315,0.33568882,61317.0,61316.0,0.03055187]
[1724401328482,0.33668882,61317.0,61316.0,0.03055187]
[1724401328733,0.38549286,61317.0,61316.0,0.01839265]
[1724401328940,0.40889489,61317.0,61316.0,0.0311404]
[1724401329141,0.40989489,61317.0,61316.0,0.01839265]
[1724401329433,0.40889489,61317.0,61316.0,0.01839265]
[1724401330086,0.40989489,61317.0,61316.0,0.01839265]
[1724401330627,0.41189489,61317.0,61316.0,0.01839265]
[1724401331028,0.41193897,61317.0,61316.0,0.01839265]
[1724401331657,0.33868882,61317.0,61316.0,0.01839265]
[1724401331938,0.38752391,61317.0,61316.0,0.01839265]
[1724401332351,0.38452391,61317.0,61316.0,0.01839265]
[1724401332549,0.38752761,61317.0,61316.0,0.01839265]
[1724401332751,0.33868882,61317.0,61316.0,0.01839265]
[1724401333170,0.33568882,61317.0,61316.0,0.01839265]
[1724401333371,0.38552761,61317.0,61316.0,0.01839265]
[1724401333919,0.73811197,61317.0,61316.0,0.01839265]
[1724401334102,0.73812937,61317.0,61316.0,0.01839265]
[1724401334303,0.66486182,61317.0,61316.0,0.01839265]
[1724401334688,1.12910363,61317.0,61316.0,0.01839265]
[1724401336130,0.80293063,61317.0,61316.0,0.01839265]
[1724401336425,0.79997812,61317.0,61316.0,0.01839265]
[1724401336650,0.17260282,61317.0,61316.0,0.01839265]
[1724401336850,0.2458886,61317.0,61316.0,0.02978457]
[1724401337746,0.17260282,61317.0,61316.0,0.02978457]
[1724401337933,0.10990282,61317.0,61316.0,0.18148165]
[1724401338134,0.10990282,61317.0,61316.0,0.19377663]
[1724401338334,0.10990282,61317.0,61316.0,0.03068763]
[1724401338335,0.1831886,61317.0,61316.0,0.03068763]
[1724401338738,0.10990282,61317.0,61316.0,0.03068763]
[1724401338941,0.1831886,61317.0,61316.0,0.03068763]
[1724401339147,0.10990282,61317.0,61316.0,0.19377663]
[1724401339357,0.1831886,61317.0,61316.0,0.19377663]
[1724401339711,0.1831886,61317.0,61316.0,0.03068763]
[1724401340279,0.10990282,61317.0,61316.0,0.03068763]
[1724401340483,0.15250528,61317.0,61316.0,0.03068763]
[1724401340901,0.10990282,61317.0,61316.0,0.03068763]
[1724401341324,0.2503689,61317.0,61316.0,0.03068763]
[1724401341541,0.2503689,61317.0,61316.0,0.19377663]
[1724401342516,0.27473813,61317.0,61316.0,0.19377663]
[1724401342715,0.15265454,61317.0,61316.0,0.19377663]
[1724401342929,0.25047726,61317.0,61316.0,0.19377663]
[1724401343140,0.15265454,61317.0,61316.0,0.19377663]
[1724401343689,0.27497454,61317.0,61316.0,0.19377663]
[1724401344061,0.15265454,61317.0,61316.0,0.19377663]
[1724401344408,0.15265454,61317.0,61316.0,0.03068763]
[1724401347290,0.15265454,61317.0,61316.0,0.19377663]
[1724401347492,0.15265454,61317.0,61316.0,0.03068763]
[1724401348408,0.07015454,61317.0,61316.0,0.35686663]
[1724401348661,0.07015454,61317.0,61316.0,0.51995563]
[1724401349897,0.0703199,61317.0,61316.0,0.51995563]
[1724401350875,0.0703199,61317.0,61316.0,0.84613463]
[1724401352260,0.0693199,61317.0,61316.0,0.92213463]
[1724401352416,0.02640282,61317.0,61316.0,0.92213463]
[1724401352640,0.0703199,61317.0,61316.0,0.92213463]
[1724401352854,0.09982806,61317.0,61316.0,0.92213463]
[1724401353323,0.09982806,61317.0,61316.0,0.84613463]
[1724401353711,0.07171079,61317.0,61316.0,0.84613463]
[1724401353917,0.10082572,61317.0,61316.0,1.01013761]
[1724401354610,0.100825,61317.0,61316.0,1.01013761]
[1724401354803,0.099825,61317.0,61316.0,1.01013761]
[1724401354993,0.099825,61317.0,61316.0,1.33631661]
[1724401355363,0.100825,61317.0,61316.0,1.33631661]
[1724401356198,0.10082133,61317.0,61316.0,1.33631661]
[1724401356625,0.02740282,61317.0,61316.0,1.33631661]
[1724401356828,0.10081979,61317.0,61316.0,1.33631661]
[1724401357149,0.09981979,61317.0,61316.0,1.33631661]
[1724401357378,0.10081979,61317.0,61316.0,1.40111661]
[1724401357582,0.10081979,61317.0,61316.0,1.33631661]
[1724401358113,0.10081979,61317.0,61316.0,1.01013761]
[1724401358313,0.1691748,61317.0,61316.0,1.01013761]
[1724401359052,0.02740282,61317.0,61316.0,1.01013761]
[1724401359262,0.40311897,61317.0,61316.0,0.03068763]
[1724401359460,1.51766659,61317.0,61316.0,0.03068763]
[1724401359666,1.62947367,61317.0,61316.0,0.01839265]
[1724401360307,1.63920883,61317.0,61316.0,0.01839265]
[1724401360491,1.63920883,61317.0,61316.0,0.01039265]
[1724401360684,1.62947367,61317.0,61316.0,0.01039265]
[1724401360894,1.63147367,61317.0,61316.0,0.00139265]
[1724401361147,1.62947367,61317.0,61316.0,0.00039265]
[1724401361547,1.63147367,61317.0,61316.0,0.00139265]
[1724401361807,1.62947367,61317.0,61316.0,0.00039265]
[1724401361986,1.95564667,61317.0,61316.0,0.00039265]
[1724401362162,1.63147367,61317.0,61316.0,0.00139265]
[1724401362361,1.63147367,61317.0,61316.0,0.00039265]
[1724401362563,1.79849906,61317.0,61316.0,0.00139265]
[1724401362790,1.63347367,61317.0,61316.0,0.00139265]
[1724401363840,1.63147367,61317.0,61316.0,0.00039265]
[1724401363969,1.62102017,61317.0,61316.0,0.00039265]
[1724401364179,1.62302017,61317.0,61316.0,0.00139265]
[1724401364361,1.62502017,61317.0,61316.0,0.00239265]
[1724401364561,1.61902017,61317.0,61316.0,0.00039265]
[1724401365020,1.62302017,61317.0,61316.0,0.00239265]
[1724401365216,1.94919317,61317.0,61316.0,0.00239265]
[1724401365418,1.94919317,61317.0,61316.0,0.00190858]